fUSD/lending_fUSD_20260630
["ID","MTS","AMOUNT","RATE_DAILY","PERIOD"]
[426738724,1782769844000,-730.12015411,0.00033506,2]
[426738727,1782769844000,-300.0,0.00033506,2]
[426738722,1782769844000,-607.84242655,0.00033506,2]
[426738728,1782769844000,-300.0,0.00033506,2]
[426738732,1782769844000,-300.0,0.00033506,2]
[426738733,1782769844000,-300.0,0.00033506,2]
[426738731,1782769844000,-345.7536,0.00033506,2]
[426738671,1782769844000,-1715.1,0.00032232,7]
[426738707,1782769844000,-283.0,0.00033404,2]
[426738706,1782769844000,-1278.0,0.00033404,2]
[426738639,1782769844000,-150.0,0.00030841,2]
[426738704,1782769844000,-3565.0,0.00033404,2]
[426738678,1782769844000,-267.0,0.00032489,3]
[426738680,1782769844000,-157.0,0.00032587,30]
[426738676,1782769844000,-951.96,0.00032411,120]
[426738679,1782769844000,-150.0,0.00032572,30]
[426738682,1782769844000,-162.0,0.00032605,30]
[426738685,1782769844000,-171.0,0.00032644,30]
[426738684,1782769844000,-283.0,0.0003263,120]
[426738691,1782769844000,-153.0,0.00032644,30]
[426738687,1782769844000,-153.0,0.00032644,30]
[426738683,1782769844000,-213.74,0.00032617,3]
[426738690,1782769844000,-161.0,0.00032644,30]
[426738692,1782769844000,-362.88,0.000327,7]
[426738693,1782769844000,-500.0,0.00032876,14]
[426738674,1782769844000,-150.0,0.00032383,2]
[426738688,1782769844000,-158.0,0.00032644,30]
[426738686,1782769844000,-235.0,0.00032644,30]
[426738703,1782769844000,-951.96,0.00033315,120]
[426738699,1782769844000,-157.44,0.00033,3]
[426738702,1782769844000,-154.46935744,0.00033239,2]
[426738696,1782769844000,-600.0,0.00032877,120]
[426738694,1782769844000,-600.0,0.00032877,120]
[426738700,1782769844000,-501.0,0.00033012,18]
[426738698,1782769844000,-180.38763472,0.00033,7]
[426738697,1782769844000,-600.0,0.00032877,120]
[426738695,1782769844000,-600.0,0.00032877,120]
[426738705,1782769844000,-1362.0,0.00033404,2]
[426738689,1782769844000,-350.0,0.00032644,30]
[426738701,1782769844000,-342.547923,0.000331,7]
[426738777,1782769845000,-300.0,0.00033506,2]
[426738771,1782769845000,-536.77715252,0.00033506,2]
[426738774,1782769845000,-456.70750963,0.00033506,2]
[426738775,1782769845000,-300.0,0.00033506,2]
[426738779,1782769845000,-300.0,0.00033506,2]
[426738761,1782769845000,-320.38699067,0.00033506,2]
[426738768,1782769845000,-300.0,0.00033506,2]
[426738769,1782769845000,-607.84242655,0.00033506,2]
[426738766,1782769845000,-495.28773916,0.00033506,2]
[426738764,1782769845000,-300.0,0.00033506,2]
[426738772,1782769845000,-300.0,0.00033506,2]
[426738770,1782769845000,-300.0,0.00033506,2]
[426738773,1782769845000,-730.12015411,0.00033506,2]
[426738787,1782769845000,-300.0,0.00033506,2]
[426738778,1782769845000,-300.0,0.00033506,2]
[426738780,1782769845000,-300.0,0.00033506,2]
[426738782,1782769845000,-345.7536,0.00033506,2]
[426738784,1782769845000,-300.0,0.00033506,2]
[426738786,1782769845000,-1807.30940739,0.00033506,2]
[426738785,1782769845000,-954.30228826,0.00033506,2]
[426738781,1782769845000,-300.0,0.00033506,2]
[426738789,1782769845000,-576.43989485,0.00033506,2]
[426738792,1782769845000,-569.01654071,0.00033506,2]
[426738788,1782769845000,-300.0,0.00033506,2]
[426738790,1782769845000,-300.0,0.00033506,2]
[426738791,1782769845000,-311.22255108,0.00033506,2]
[426738765,1782769845000,-486.96949518,0.00033506,2]
[426738776,1782769845000,-302.16203863,0.00033506,2]
[426738759,1782769845000,-510.92345042,0.00033506,2]
[426738748,1782769845000,-300.0,0.00033506,2]
[426738756,1782769845000,-300.0,0.00033506,2]
[426738742,1782769845000,-300.0,0.00033506,2]
[426738743,1782769845000,-300.0,0.00033506,2]
[426738738,1782769845000,-576.43989485,0.00033506,2]
[426738741,1782769845000,-352.45719778,0.00033506,2]
[426738734,1782769845000,-954.30228826,0.00033506,2]
[426738739,1782769845000,-311.22255108,0.00033506,2]
[426738736,1782769845000,-419.98399344,0.00033506,2]
[426738737,1782769845000,-300.0,0.00033506,2]
[426738735,1782769845000,-1807.30940739,0.00033506,2]
[426738740,1782769845000,-569.01654071,0.00033506,2]
[426738755,1782769845000,-1101.0618519,0.00033506,2]
[426738744,1782769845000,-513.95923093,0.00033506,2]
[426738745,1782769845000,-300.0,0.00033506,2]
[426738746,1782769845000,-584.66801755,0.00033506,2]
[426738747,1782769845000,-454.26701287,0.00033506,2]
[426738794,1782769845000,-300.0,0.00033506,2]
[426738749,1782769845000,-300.0,0.00033506,2]
[426738750,1782769845000,-300.0,0.00033506,2]
[426738752,1782769845000,-446.09705538,0.00033506,2]
[426738753,1782769845000,-300.0,0.00033506,2]
[426738754,1782769845000,-300.0,0.00033506,2]
[426738751,1782769845000,-300.0,0.00033506,2]
[426738763,1782769845000,-300.0,0.00033506,2]
[426738757,1782769845000,-300.0,0.00033506,2]
[426738762,1782769845000,-300.0,0.00033506,2]
[426738758,1782769845000,-300.0,0.00033506,2]
[426738767,1782769845000,-300.0,0.00033506,2]
[426738760,1782769845000,-300.0,0.00033506,2]
[426738802,1782769845000,-300.0,0.00033506,2]
[426738783,1782769845000,-300.0,0.00033506,2]
[426738795,1782769845000,-300.0,0.00033506,2]
[426738829,1782769845000,-156.78,0.00033663,13]
[426738832,1782769845000,-180.2025,0.00033663,13]
[426738831,1782769845000,-195.98,0.00033663,13]
[426738830,1782769845000,-156.79,0.00033663,13]
[426738835,1782769845000,-500.0,0.00033767,7]
[426738841,1782769845000,-162.65,0.000338,7]
[426738833,1782769845000,-180.2,0.00033663,13]
[426738840,1782769845000,-501.0,0.00033795,18]
[426738837,1782769845000,-656.92,0.00033767,7]
[426738836,1782769845000,-908.01,0.00033767,7]
[426738834,1782769845000,-151.0,0.00033765,14]
[426738839,1782769845000,-1191.1844004,0.00033768,2]
[426738838,1782769845000,-230647.0792881,0.00033768,2]
[426738824,1782769845000,-153.0,0.00033644,30]
[426738851,1782769845000,-185.28,0.00033902,2]
[426738854,1782769845000,-644.59,0.00033902,2]
[426738842,1782769845000,-5554.43514228,0.00033834,2]
[426738853,1782769845000,-185.25,0.00033902,2]
[426738852,1782769845000,-573.86,0.00033902,2]
[426738845,1782769845000,-151.0,0.00033896,2]
[426738844,1782769845000,-274.36329609,0.00033843,2]
[426738846,1782769845000,-151.0,0.00033896,2]
[426738803,1782769845000,-300.0,0.00033506,2]
[426738850,1782769845000,-151.0,0.00033902,2]
[426738849,1782769845000,-151.0,0.00033902,2]
[426738847,1782769845000,-151.39,0.00033896,2]
[426738855,1782769845000,-185.23,0.00033902,2]
[426738856,1782769845000,-248.74,0.00033902,2]
[426738843,1782769845000,-215.47221646,0.00033843,2]
[426738826,1782769845000,-350.0,0.00033644,30]
[426738848,1782769845000,-151.0,0.00033896,2]
[426738823,1782769845000,-235.0,0.00033644,30]
[426738825,1782769845000,-158.0,0.00033644,30]
[426738805,1782769845000,-300.0,0.00033506,2]
[426738804,1782769845000,-300.0,0.00033506,2]
[426738796,1782769845000,-300.0,0.00033506,2]
[426738797,1782769845000,-513.95923093,0.00033506,2]
[426738800,1782769845000,-300.0,0.00033506,2]
[426738801,1782769845000,-454.26701287,0.00033506,2]
[426738799,1782769845000,-584.66801755,0.00033506,2]
[426738798,1782769845000,-300.0,0.00033506,2]
[426738806,1782769845000,-300.0,0.00033506,2]
[426738811,1782769845000,-1101.0618519,0.00033506,2]
[426738817,1782769845000,-250.0,0.0003356,7]
[426738807,1782769845000,-446.09705538,0.00033506,2]
[426738810,1782769845000,-300.0,0.00033506,2]
[426738793,1782769845000,-523.24060639,0.00033506,2]
[426738809,1782769845000,-300.0,0.00033506,2]
[426738808,1782769845000,-300.0,0.00033506,2]
[426738818,1782769845000,-157.0,0.00033587,30]
[426738827,1782769845000,-161.0,0.00033644,30]
[426738828,1782769845000,-153.0,0.00033644,30]
[426738821,1782769845000,-361.37,0.00033637,3]
[426738819,1782769845000,-431.0,0.00033605,30]
[426738820,1782769845000,-162.0,0.00033605,30]
[426738812,1782769845000,-300.0,0.00033506,2]
[426738815,1782769845000,-350.0,0.00033549,2]
[426738814,1782769845000,-2834.0,0.00033506,10]
[426738816,1782769845000,-250.0,0.0003356,7]
[426738822,1782769845000,-171.0,0.00033644,30]
[426738813,1782769845000,-300.0,0.00033506,2]
[426738885,1782769846000,-518.78,0.00034521,30]
[426738894,1782769846000,-157.0,0.00034587,30]
[426738889,1782769846000,-812.0,0.0003457,120]
[426738890,1782769846000,-747.0,0.0003457,120]
[426738884,1782769846000,-162.65,0.000344,7]
[426738891,1782769846000,-501.0,0.00034578,19]
[426738887,1782769846000,-516.24,0.00034544,60]
[426738893,1782769846000,-747.0,0.0003458,120]
[426738892,1782769846000,-812.0,0.0003458,120]
[426738882,1782769846000,-154.46935744,0.00034274,2]
[426738888,1782769846000,-211.51729822,0.00034567,2]
[426738898,1782769846000,-431.0,0.00034605,30]
[426738906,1782769846000,-171.0,0.00034644,30]
[426738897,1782769846000,-362.88,0.000346,30]
[426738899,1782769846000,-162.0,0.00034605,30]
[426738895,1782769846000,-812.0,0.0003459,120]
[426738900,1782769846000,-721.20748,0.0003461,56]
[426738901,1782769846000,-721.20749,0.0003461,56]
[426738903,1782769846000,-721.20749,0.0003461,56]
[426738902,1782769846000,-721.20748,0.0003461,56]
[426738904,1782769846000,-479.930467,0.0003461,7]
[426738886,1782769846000,-311.49,0.00034544,60]
[426738905,1782769846000,-271.12145189,0.0003463,2]
[426738896,1782769846000,-747.0,0.0003459,120]
[426738881,1782769846000,-350.0,0.00034223,2]
[426738860,1782769846000,-248.7,0.00033902,2]
[426738877,1782769846000,-180.2025,0.00034211,13]
[426738907,1782769846000,-235.0,0.00034644,30]
[426738858,1782769846000,-151.0,0.00033902,2]
[426738857,1782769846000,-151.0,0.00033902,2]
[426738867,1782769846000,-482.64,0.00033902,2]
[426738868,1782769846000,-644.64,0.00033902,2]
[426738859,1782769846000,-248.74,0.00033902,2]
[426738865,1782769846000,-573.86,0.00033902,2]
[426738861,1782769846000,-151.0,0.00033902,2]
[426738866,1782769846000,-481.72,0.00033902,2]
[426738862,1782769846000,-151.0,0.00033902,2]
[426738863,1782769846000,-151.0,0.00033902,2]
[426738864,1782769846000,-151.48,0.00033902,2]
[426738869,1782769846000,-482.62,0.00033902,2]
[426738870,1782769846000,-174.78,0.00034,120]
[426738880,1782769846000,-951.96,0.00034219,120]
[426738876,1782769846000,-319.0,0.00034154,30]
[426738871,1782769846000,-150.0,0.00034002,2]
[426738873,1782769846000,-2000.0,0.00034095,7]
[426738874,1782769846000,-70807.0660601,0.00034099,2]
[426738879,1782769846000,-161.45,0.00034212,120]
[426738878,1782769846000,-180.2,0.00034211,13]
[426738875,1782769846000,-162.65,0.000341,7]
[426738872,1782769846000,-4016.88628269,0.00034073,2]
[426738883,1782769846000,-1500.0,0.000344,7]
[426738912,1782769846000,-350.0,0.00034644,30]
[426738961,1782769846000,-482.62,0.00034724,2]
[426738908,1782769846000,-153.0,0.00034644,30]
[426738950,1782769846000,-151.0,0.00034718,2]
[426738944,1782769846000,-644.64,0.00034718,2]
[426738951,1782769846000,-151.0,0.00034718,2]
[426738942,1782769846000,-151.0,0.00034718,2]
[426738946,1782769846000,-482.62,0.00034718,2]
[426738947,1782769846000,-482.62,0.00034718,2]
[426738940,1782769846000,-644.42,0.00034718,2]
[426738948,1782769846000,-573.75,0.00034718,2]
[426738952,1782769846000,-151.53,0.00034718,2]
[426738954,1782769846000,-482.34,0.00034718,2]
[426738968,1782769846000,-151.0,0.000348,120]
[426738956,1782769846000,-656.92,0.00034724,7]
[426738958,1782769846000,-644.59,0.00034724,2]
[426738953,1782769846000,-440.3,0.00034718,2]
[426738964,1782769846000,-180.2,0.00034759,13]
[426738965,1782769846000,-1000.0,0.00034785,30]
[426738957,1782769846000,-482.75,0.00034724,2]
[426738960,1782769846000,-482.62,0.00034724,2]
[426738959,1782769846000,-574.43,0.00034724,2]
[426738962,1782769846000,-482.62,0.00034724,2]
[426738963,1782769846000,-180.2025,0.00034759,13]
[426738966,1782769846000,-1500.0,0.00034795,2]
[426738909,1782769846000,-158.0,0.00034644,30]
[426738949,1782769846000,-151.0,0.00034718,2]
[426738945,1782769846000,-248.74,0.00034718,2]
[426738955,1782769846000,-908.01,0.00034724,7]
[426738941,1782769846000,-151.0,0.00034718,2]
[426738915,1782769846000,-166.0,0.00034644,30]
[426738943,1782769846000,-193.21,0.00034718,2]
[426738916,1782769846000,-153.0,0.00034644,30]
[426738918,1782769846000,-355.09,0.00034657,3]
[426738920,1782769846000,-500.0,0.00034673,7]
[426738921,1782769846000,-908.01,0.00034673,7]
[426738922,1782769846000,-656.92,0.00034673,7]
[426738925,1782769846000,-162.65,0.000347,7]
[426738924,1782769846000,-200.0,0.00034679,10]
[426738927,1782769846000,-573.9,0.00034718,2]
[426738938,1782769846000,-151.0,0.00034718,2]
[426738923,1782769846000,-283884.23198378,0.00034674,2]
[426738926,1782769846000,-500.0,0.00034717,7]
[426738939,1782769846000,-185.3,0.00034718,2]
[426738935,1782769846000,-482.62,0.00034718,2]
[426738937,1782769846000,-482.64,0.00034718,2]
[426738936,1782769846000,-151.0,0.00034718,2]
[426738934,1782769846000,-482.62,0.00034718,2]
[426738932,1782769846000,-248.76,0.00034718,2]
[426738933,1782769846000,-286.79,0.00034718,2]
[426738930,1782769846000,-151.0,0.00034718,2]
[426738928,1782769846000,-151.0,0.00034718,2]
[426738929,1782769846000,-248.76,0.00034718,2]
[426738931,1782769846000,-151.0,0.00034718,2]
[426739025,1782769847000,-11228.71475192,0.00035,120]
[426739027,1782769847000,-1105.66872163,0.00035,120]
[426739022,1782769847000,-4246.73583235,0.00035,7]
[426739026,1782769847000,-2750.84293219,0.00035,2]
[426739021,1782769847000,-174.0,0.00035,2]
[426739019,1782769847000,-364.00622079,0.00035,30]
[426739024,1782769847000,-6693.50681856,0.00035,30]
[426739018,1782769847000,-4801.7349,0.00035,2]
[426739017,1782769847000,-30000.0,0.00035,30]
[426739030,1782769847000,-2812.82922078,0.00035,10]
[426739023,1782769847000,-182.14359445,0.00035,120]
[426739029,1782769847000,-8331.26488816,0.00035,30]
[426739038,1782769847000,-2004.63,0.00035,120]
[426739036,1782769847000,-494.21329011,0.00035,15]
[426738989,1782769847000,-2000.0,0.00034959,2]
[426739032,1782769847000,-1734.01008843,0.00035,30]
[426739033,1782769847000,-12337.1575395,0.00035,7]
[426739034,1782769847000,-5304.43597613,0.00035,7]
[426739028,1782769847000,-5698.05175941,0.00035,30]
[426739037,1782769847000,-1078.23533297,0.00035,120]
[426739035,1782769847000,-2303.63313041,0.00035,30]
[426739039,1782769847000,-1251.1385,0.00035,2]
[426739040,1782769847000,-3000.0,0.00035,30]
[426739049,1782769847000,-275.52,0.0003503,30]
[426739031,1782769847000,-3170.53708571,0.00035,2]
[426739020,1782769847000,-25199.07845607,0.00035,2]
[426738991,1782769847000,-721.20749,0.0003496,61]
[426739011,1782769847000,-200.30438808,0.00035,120]
[426739041,1782769847000,-3000.0,0.00035,30]
[426738988,1782769847000,-4200.0,0.000349,12]
[426738990,1782769847000,-721.20748,0.0003496,61]
[426738993,1782769847000,-485.10758624,0.00034999,30]
[426738992,1782769847000,-200.0,0.0003496,2]
[426739003,1782769847000,-161.63236081,0.00035,120]
[426738996,1782769847000,-656.92,0.00034999,7]
[426738998,1782769847000,-204.13536785,0.00035,120]
[426738994,1782769847000,-500.0,0.00034999,7]
[426739000,1782769847000,-178.16973595,0.00035,120]
[426738995,1782769847000,-908.01,0.00034999,7]
[426738997,1782769847000,-208.14482667,0.00035,120]
[426739016,1782769847000,-225.13534365,0.00035,120]
[426739001,1782769847000,-204.79573392,0.00035,120]
[426738999,1782769847000,-208.90060572,0.00035,120]
[426739004,1782769847000,-170.89233083,0.00035,120]
[426739015,1782769847000,-205.06990362,0.00035,120]
[426739005,1782769847000,-427.7659754,0.00035,120]
[426739013,1782769847000,-262.07970712,0.00035,120]
[426739014,1782769847000,-206.11002998,0.00035,120]
[426739006,1782769847000,-183.66054817,0.00035,120]
[426739008,1782769847000,-188.31751342,0.00035,120]
[426739007,1782769847000,-165.77627914,0.00035,120]
[426739010,1782769847000,-200.0,0.00035,120]
[426739012,1782769847000,-201.78794529,0.00035,120]
[426739009,1782769847000,-223.07082127,0.00035,120]
[426739002,1782769847000,-169.62419858,0.00035,120]
[426739043,1782769847000,-1500.0,0.00035,2]
[426739060,1782769847000,-189.77172092,0.000352,30]
[426739044,1782769847000,-216.58458871,0.00035,7]
[426739088,1782769847000,-151.0,0.00035245,7]
[426739087,1782769847000,-185.963335,0.00035245,7]
[426739080,1782769847000,-3035.015411,0.00035245,7]
[426739089,1782769847000,-390.280005,0.00035245,7]
[426739077,1782769847000,-883.146791,0.00035245,7]
[426739083,1782769847000,-3035.015411,0.00035245,7]
[426739082,1782769847000,-185.963335,0.00035245,7]
[426739084,1782769847000,-185.963335,0.00035245,7]
[426739085,1782769847000,-3035.015411,0.00035245,7]
[426739086,1782769847000,-185.963335,0.00035245,7]
[426739079,1782769847000,-151.0,0.00035245,7]
[426739081,1782769847000,-3035.015411,0.00035245,7]
[426739091,1782769847000,-390.280005,0.00035245,7]
[426739100,1782769847000,-192.710337,0.00035245,7]
[426739096,1782769847000,-151.0,0.00035245,7]
[426739095,1782769847000,-151.0,0.00035245,7]
[426739101,1782769847000,-192.710337,0.00035245,7]
[426739098,1782769847000,-192.710337,0.00035245,7]
[426739097,1782769847000,-275.934024,0.00035245,7]
[426739092,1782769847000,-390.280005,0.00035245,7]
[426739094,1782769847000,-245.279037,0.00035245,7]
[426739093,1782769847000,-151.0,0.00035245,7]
[426739090,1782769847000,-390.280005,0.00035245,7]
[426739099,1782769847000,-192.710337,0.00035245,7]
[426739042,1782769847000,-3575.0,0.00035,30]
[426739076,1782769847000,-883.146791,0.00035245,7]
[426739078,1782769847000,-883.146791,0.00035245,7]
[426739068,1782769847000,-1492.73875553,0.00035245,30]
[426739071,1782769847000,-4252.868314,0.00035245,7]
[426739073,1782769847000,-4252.868314,0.00035245,7]
[426739048,1782769847000,-179.50198925,0.00035008,30]
[426739046,1782769847000,-1111.63,0.00035,60]
[426739047,1782769847000,-195669.13696057,0.00035,30]
[426739050,1782769847000,-2000.0,0.00035079,7]
[426739053,1782769847000,-951.96,0.00035123,120]
[426739052,1782769847000,-200.0,0.000351,11]
[426739051,1782769847000,-20797.65910178,0.00035092,7]
[426739061,1782769847000,-350.0,0.0003524,2]
[426739057,1782769847000,-2131.96752532,0.000352,30]
[426739062,1782769847000,-151.0,0.00035242,14]
[426739056,1782769847000,-2131.96752532,0.000352,30]
[426739058,1782769847000,-189.77172095,0.000352,30]
[426739045,1782769847000,-162.65,0.00035,7]
[426739055,1782769847000,-2131.96752534,0.000352,30]
[426739054,1782769847000,-6728.58210777,0.00035157,2]
[426739070,1782769847000,-4252.868314,0.00035245,7]
[426739069,1782769847000,-1069046.4645,0.00035245,2]
[426739066,1782769847000,-500.0,0.00035244,7]
[426739075,1782769847000,-883.146791,0.00035245,7]
[426739072,1782769847000,-4252.868314,0.00035245,7]
[426739065,1782769847000,-500.0,0.00035244,7]
[426739063,1782769847000,-500.0,0.00035244,7]
[426739074,1782769847000,-151.0,0.00035245,7]
[426739064,1782769847000,-500.0,0.00035244,7]
[426739059,1782769847000,-189.77172092,0.000352,30]
[426739067,1782769847000,-500.0,0.00035244,7]
[426739135,1782769848000,-505.18157816,0.000354,30]
[426739130,1782769848000,-2210.27188032,0.000354,30]
[426739127,1782769848000,-2210.27188032,0.000354,30]
[426739131,1782769848000,-2210.27188032,0.000354,30]
[426739129,1782769848000,-2210.27188032,0.000354,30]
[426739133,1782769848000,-2210.27,0.000354,30]
[426739134,1782769848000,-505.18157816,0.000354,30]
[426739138,1782769848000,-505.18157816,0.000354,30]
[426739137,1782769848000,-505.18157816,0.000354,30]
[426739140,1782769848000,-505.18157816,0.000354,30]
[426739147,1782769848000,-505.18157816,0.000354,30]
[426739136,1782769848000,-505.18157816,0.000354,30]
[426739139,1782769848000,-505.18157816,0.000354,30]
[426739144,1782769848000,-505.18157816,0.000354,30]
[426739146,1782769848000,-505.18157816,0.000354,30]
[426739132,1782769848000,-2210.27188032,0.000354,30]
[426739143,1782769848000,-505.18157816,0.000354,30]
[426739152,1782769848000,-505.18157816,0.000354,30]
[426739142,1782769848000,-505.18157816,0.000354,30]
[426739149,1782769848000,-505.18157816,0.000354,30]
[426739148,1782769848000,-505.18157816,0.000354,30]
[426739128,1782769848000,-2210.27188032,0.000354,30]
[426739124,1782769848000,-2210.27188032,0.000354,30]
[426739117,1782769848000,-2210.27188032,0.000354,30]
[426739123,1782769848000,-2210.27188032,0.000354,30]
[426739102,1782769848000,-1027.870906,0.00035245,7]
[426739103,1782769848000,-1027.870906,0.00035245,7]
[426739106,1782769848000,-200.0,0.0003531,2]
[426739108,1782769848000,-6728.58210777,0.00035316,2]
[426739104,1782769848000,-162.65,0.000353,7]
[426739105,1782769848000,-154.46935744,0.00035308,2]
[426739113,1782769848000,-362.88,0.000354,30]
[426739107,1782769848000,-179.50198925,0.00035312,30]
[426739109,1782769848000,-1285.80261644,0.00035325,2]
[426739110,1782769848000,-501.0,0.00035361,20]
[426739141,1782769848000,-505.18157816,0.000354,30]
[426739112,1782769848000,-441.0,0.00035367,7]
[426739125,1782769848000,-2210.27188032,0.000354,30]
[426739115,1782769848000,-2210.27188032,0.000354,30]
[426739126,1782769848000,-2210.27188032,0.000354,30]
[426739114,1782769848000,-2210.27188032,0.000354,30]
[426739116,1782769848000,-2210.27188032,0.000354,30]
[426739118,1782769848000,-2210.27188032,0.000354,30]
[426739121,1782769848000,-2210.27188032,0.000354,30]
[426739119,1782769848000,-2210.27188032,0.000354,30]
[426739120,1782769848000,-2210.27188032,0.000354,30]
[426739122,1782769848000,-2210.27188032,0.000354,30]
[426739153,1782769848000,-505.18,0.000354,30]
[426739111,1782769848000,-201.0,0.00035367,7]
[426739151,1782769848000,-505.18157816,0.000354,30]
[426739176,1782769848000,-908.01,0.00035499,7]
[426739183,1782769848000,-908.01,0.00035499,7]
[426739189,1782769848000,-656.92,0.00035499,7]
[426739190,1782769848000,-656.92,0.00035499,7]
[426739186,1782769848000,-908.08,0.00035499,7]
[426739184,1782769848000,-908.01,0.00035499,7]
[426739187,1782769848000,-656.92,0.00035499,7]
[426739181,1782769848000,-908.01,0.00035499,7]
[426739188,1782769848000,-656.92,0.00035499,7]
[426739191,1782769848000,-656.92,0.00035499,7]
[426739182,1782769848000,-908.01,0.00035499,7]
[426739185,1782769848000,-908.01,0.00035499,7]
[426739192,1782769848000,-656.92,0.00035499,7]
[426739193,1782769848000,-656.92,0.00035499,7]
[426739194,1782769848000,-656.92,0.00035499,7]
[426739195,1782769848000,-513.8861849,0.000355,60]
[426739196,1782769848000,-5000000.0,0.000355,120]
[426739197,1782769848000,-1008240.66173112,0.000355,120]
[426739199,1782769848000,-1772.33926235,0.000355,120]
[426739198,1782769848000,-656.92,0.00035499,7]
[426739145,1782769848000,-505.18157816,0.000354,30]
[426739169,1782769848000,-500.0,0.00035499,7]
[426739179,1782769848000,-908.01,0.00035499,7]
[426739180,1782769848000,-908.01,0.00035499,7]
[426739178,1782769848000,-908.01,0.00035499,7]
[426739150,1782769848000,-505.18157816,0.000354,30]
[426739154,1782769848000,-223.54524297,0.000354,7]
[426739166,1782769848000,-300.0,0.00035499,10]
[426739158,1782769848000,-812.0,0.0003548,120]
[426739155,1782769848000,-275.52,0.0003546,69]
[426739160,1782769848000,-812.0,0.0003549,120]
[426739159,1782769848000,-747.0,0.0003548,120]
[426739161,1782769848000,-747.0,0.0003549,120]
[426739175,1782769848000,-908.01,0.00035499,7]
[426739156,1782769848000,-812.0,0.0003547,120]
[426739164,1782769848000,-300.0,0.00035499,10]
[426739157,1782769848000,-747.0,0.0003547,120]
[426739165,1782769848000,-300.0,0.00035499,10]
[426739171,1782769848000,-500.0,0.00035499,7]
[426739163,1782769848000,-151.0,0.00035497,14]
[426739177,1782769848000,-908.01,0.00035499,7]
[426739172,1782769848000,-500.0,0.00035499,7]
[426739173,1782769848000,-463.00138276,0.00035499,7]
[426739168,1782769848000,-300.0,0.00035499,10]
[426739170,1782769848000,-500.0,0.00035499,7]
[426739167,1782769848000,-666.0,0.00035499,30]
[426739162,1782769848000,-151.0,0.00035497,14]
[426739174,1782769848000,-908.01,0.00035499,7]
[426739206,1782769849000,-19147.4,0.00027397,10]
[426739200,1782769849000,-2998.23165381,0.000355,120]
[426739202,1782769849000,-162.85952542,0.000355,120]
[426739201,1782769849000,-337.14047458,0.00033374,2]
[426739204,1782769849000,-93520.72204973,0.00013004,2]
[426739203,1782769849000,-1344.99,0.00013004,2]
[426739205,1782769849000,-31547.19545027,0.00013004,2]
[426739207,1782769849000,-300.0,0.00033506,2]
[426739211,1782769849000,-392.11655371,0.00035499,7]
[426739209,1782769849000,-526.11331301,0.00035499,7]
[426739212,1782769849000,-264.80344629,0.00035499,7]
[426739210,1782769849000,-130.80668699,0.00035499,7]
[426739208,1782769849000,-1027.870906,0.00035245,7]
[426739213,1782769849000,-656.92,0.00035499,7]
[426739216,1782769849000,-921533.83663937,0.000355,120]
[426739215,1782769849000,-657.03014382,0.00035499,7]
[426739214,1782769849000,-25.26655371,0.000355,120]
[426739234,1782769850000,-563.03,0.00027742,7]
[426739236,1782769850000,-161.57,0.00027787,7]
[426739233,1782769850000,-516.58,0.00027739,7]